[Event "Titled Tuesday Blitz March 15 Early 2022"]
[White "Urquhart, Ed"]
[Black "Pakleza, Zbigniew"]
[WhiteFideId "2603748"]
[BlackFideId "1119290"]
[WhiteElo "2184"]
[BlackElo "2467"]
[Result "0-1"]
[Round "01"]
[TimeControl "180+1"]
[Date "2022.03.15"]
[WhiteClock "0:01:13"]
[BlackClock "0:00:25"]

1. e4 {[%clk 0:02:58]}  d6 {[%clk 0:03:00]} 2. Nc3 {[%clk 0:02:57]}  Nf6 {[%clk 0:03:00]} 3. f4 {[%clk 0:02:56]}  d5 {[%clk 0:03:00]} 4. e5 {[%clk 0:02:54]}  d4 {[%clk 0:03:01]} 5. exf6 {[%clk 0:02:53]}  dxc3 {[%clk 0:03:00]} 6. fxg7 {[%clk 0:02:54]}  cxd2+ {[%clk 0:03:00]} 7. Qxd2 {[%clk 0:02:54]}  Bxg7 {[%clk 0:03:00]} 8. Qxd8+ {[%clk 0:02:53]}  Kxd8 {[%clk 0:03:01]} 9. Nf3 {[%clk 0:02:51]}  Bf5 {[%clk 0:02:51]} 10. c3 {[%clk 0:02:47]}  e6 {[%clk 0:02:47]} 11. Be3 {[%clk 0:02:45]}  Nd7 {[%clk 0:02:42]} 12. O-O-O {[%clk 0:02:45]}  Ke7 {[%clk 0:02:42]} 13. Bd4 {[%clk 0:02:40]}  Bxd4 {[%clk 0:02:33]} 14. Nxd4 {[%clk 0:02:41]}  Be4 {[%clk 0:02:33]} 15. Rg1 {[%clk 0:02:38]}  Rhg8 {[%clk 0:02:22]} 16. g3 {[%clk 0:02:38]}  Nf6 {[%clk 0:02:22]} 17. Bg2 {[%clk 0:02:34]}  Rad8 {[%clk 0:02:08]} 18. Rde1 {[%clk 0:02:30]}  Bxg2 {[%clk 0:02:02]} 19. Rxg2 {[%clk 0:02:30]}  c5 {[%clk 0:01:57]} 20. Nf3 {[%clk 0:02:24]}  Rd5 {[%clk 0:01:47]} 21. Rge2 {[%clk 0:02:22]}  b5 {[%clk 0:01:36]} 22. Re5 {[%clk 0:02:12]}  a6 {[%clk 0:01:28]} 23. Rxd5 {[%clk 0:02:08]}  Nxd5 {[%clk 0:01:29]} 24. Ne5 {[%clk 0:02:06]}  f6 {[%clk 0:01:20]} 25. Nd3 {[%clk 0:02:01]}  Kd6 {[%clk 0:01:19]} 26. Nf2 {[%clk 0:01:58]}  f5 {[%clk 0:01:15]} 27. Nd3 {[%clk 0:01:58]}  h5 {[%clk 0:01:10]} 28. Ne5 {[%clk 0:01:56]}  h4 {[%clk 0:00:51]} 29. Nf7+ {[%clk 0:01:56]}  Kd7 {[%clk 0:00:50]} 30. Ng5 {[%clk 0:01:57]}  Rg6 {[%clk 0:00:45]} 31. Kd2 {[%clk 0:01:52]}  hxg3 {[%clk 0:00:40]} 32. hxg3 {[%clk 0:01:52]}  Rh6 {[%clk 0:00:41]} 33. Re2 {[%clk 0:01:51]}  a5 {[%clk 0:00:41]} 34. Ke1 {[%clk 0:01:39]}  c4 {[%clk 0:00:38]} 35. Kf2 {[%clk 0:01:38]}  b4 {[%clk 0:00:37]} 36. cxb4 {[%clk 0:01:35]}  axb4 {[%clk 0:00:38]} 37. Kg2 {[%clk 0:01:35]}  Rg6 {[%clk 0:00:30]} 38. Kf3 {[%clk 0:01:34]}  Kd6 {[%clk 0:00:28]} 39. Nf7+ {[%clk 0:01:33]}  Kc5 {[%clk 0:00:27]} 40. Ne5 {[%clk 0:01:33]}  Rg7 {[%clk 0:00:27]} 41. Rc2 {[%clk 0:01:32]}  c3 {[%clk 0:00:27]} 42. bxc3 {[%clk 0:01:25]}  bxc3 {[%clk 0:00:28]} 43. g4 {[%clk 0:01:16]}  fxg4+ {[%clk 0:00:27]} 44. Nxg4 {[%clk 0:01:17]}  Rf7 {[%clk 0:00:25]} 45. Ne5 {[%clk 0:01:15]}  Rxf4+ {[%clk 0:00:25]} 46. Ke2 {[%clk 0:01:13]}  Re4+ {[%clk 0:00:25]} 47. Kd3 {[%clk 0:01:13]}  Rxe5 {[%clk 0:00:25]} 0-1


[Site "https://www.chess.com"]

[Event "Titled Tuesday Blitz March 15 Early 2022"]
[White "Vujnovic, Patricija"]
[Black "Petersson, Kjell"]
[WhiteFideId "14502313"]
[BlackFideId "1705148"]
[WhiteElo "2107"]
[BlackElo "2009"]
[Result "1-0"]
[Round "01"]
[TimeControl "180+1"]
[Date "2022.03.15"]
[WhiteClock "0:00:15"]
[BlackClock "0:00:13"]

1. e4 {[%clk 0:03:00]}  c5 {[%clk 0:02:59]} 2. b4 {[%clk 0:02:58]}  cxb4 {[%clk 0:02:53]} 3. d4 {[%clk 0:02:57]}  d6 {[%clk 0:02:49]} 4. Nf3 {[%clk 0:02:53]}  Nf6 {[%clk 0:02:49]} 5. Bd3 {[%clk 0:02:49]}  g6 {[%clk 0:02:48]} 6. a3 {[%clk 0:02:39]}  bxa3 {[%clk 0:02:27]} 7. Nxa3 {[%clk 0:02:37]}  Bg7 {[%clk 0:02:26]} 8. O-O {[%clk 0:02:36]}  O-O {[%clk 0:02:26]} 9. c4 {[%clk 0:02:27]}  Nc6 {[%clk 0:02:17]} 10. Bb2 {[%clk 0:02:23]}  b6 {[%clk 0:02:10]} 11. Rc1 {[%clk 0:02:13]}  Bb7 {[%clk 0:02:09]} 12. Re1 {[%clk 0:02:11]}  Rc8 {[%clk 0:01:36]} 13. Bb1 {[%clk 0:02:03]}  Na5 {[%clk 0:01:34]} 14. Qe2 {[%clk 0:01:48]}  Ba6 {[%clk 0:01:34]} 15. Nd2 {[%clk 0:01:46]}  Qd7 {[%clk 0:01:27]} 16. e5 {[%clk 0:01:24]}  dxe5 {[%clk 0:01:24]} 17. dxe5 {[%clk 0:01:24]}  Nh5 {[%clk 0:01:19]} 18. e6 {[%clk 0:01:23]}  fxe6 {[%clk 0:01:15]} 19. Bxg7 {[%clk 0:01:22]}  Nxg7 {[%clk 0:01:13]} 20. Nf3 {[%clk 0:01:18]}  Qa4 {[%clk 0:00:58]} 21. Qe3 {[%clk 0:01:07]}  Nxc4 {[%clk 0:00:53]} 22. Nxc4 {[%clk 0:00:54]}  Bxc4 {[%clk 0:00:54]} 23. Qh6 {[%clk 0:00:53]}  Nf5 {[%clk 0:00:43]} 24. Bxf5 {[%clk 0:00:51]}  Rxf5 {[%clk 0:00:41]} 25. Ng5 {[%clk 0:00:47]}  Rxg5 {[%clk 0:00:38]} 26. Qxg5 {[%clk 0:00:47]}  Qd7 {[%clk 0:00:32]} 27. h4 {[%clk 0:00:45]}  Qe8 {[%clk 0:00:29]} 28. h5 {[%clk 0:00:43]}  b5 {[%clk 0:00:29]} 29. h6 {[%clk 0:00:40]}  Qf7 {[%clk 0:00:27]} 30. Re3 {[%clk 0:00:38]}  Rd8 {[%clk 0:00:18]} 31. Rf3 {[%clk 0:00:32]}  Qe8 {[%clk 0:00:18]} 32. Qe5 {[%clk 0:00:30]}  Qf7 {[%clk 0:00:16]} 33. Rxf7 {[%clk 0:00:29]}  Kxf7 {[%clk 0:00:17]} 34. Qg7+ {[%clk 0:00:29]}  Ke8 {[%clk 0:00:17]} 35. Qg8+ {[%clk 0:00:26]}  Kd7 {[%clk 0:00:18]} 36. Rd1+ {[%clk 0:00:26]}  Bd5 {[%clk 0:00:16]} 37. Qxh7 {[%clk 0:00:26]}  a5 {[%clk 0:00:15]} 38. Qxg6 {[%clk 0:00:26]}  a4 {[%clk 0:00:15]} 39. h7 {[%clk 0:00:26]}  a3 {[%clk 0:00:15]} 40. Qg7 {[%clk 0:00:22]}  b4 {[%clk 0:00:14]} 41. h8=Q {[%clk 0:00:22]}  Rxh8 {[%clk 0:00:13]} 42. Qxh8 {[%clk 0:00:23]}  b3 {[%clk 0:00:13]} 43. Qc3 {[%clk 0:00:21]}  a2 {[%clk 0:00:13]} 44. Qxb3 {[%clk 0:00:14]}  Ke8 {[%clk 0:00:12]} 45. Qxd5 {[%clk 0:00:12]}  exd5 {[%clk 0:00:11]} 46. Ra1 {[%clk 0:00:12]}  e5 {[%clk 0:00:10]} 47. Rxa2 {[%clk 0:00:13]}  Ke7 {[%clk 0:00:10]} 48. Kf1 {[%clk 0:00:14]}  Kf6 {[%clk 0:00:11]} 49. Ke2 {[%clk 0:00:15]}  Kf5 {[%clk 0:00:11]} 50. Rd2 {[%clk 0:00:15]}  Kf4 {[%clk 0:00:12]} 51. g3+ {[%clk 0:00:15]}  Kf5 {[%clk 0:00:12]} 52. Rxd5 {[%clk 0:00:15]}  Ke6 {[%clk 0:00:13]} 53. Ra5 {[%clk 0:00:15]} 1-0


[Site "https://www.chess.com"]

[Event "Titled Tuesday Blitz March 15 Early 2022"]
[White "Winkels, Marcel"]
[Black "Coto Mederos, Michel"]
[WhiteFideId "1003887"]
[BlackFideId "3508528"]
[WhiteElo "1900"]
[BlackElo "2427"]
[Result "0-1"]
[Round "01"]
[TimeControl "180+1"]
[Date "2022.03.15"]
[WhiteClock "0:01:52"]
[BlackClock "0:01:39"]

1. e4 {[%clk 0:02:57]}  e5 {[%clk 0:02:58]} 2. Nf3 {[%clk 0:02:56]}  Nf6 {[%clk 0:02:59]} 3. d4 {[%clk 0:02:53]}  Nxe4 {[%clk 0:02:58]} 4. Bd3 {[%clk 0:02:52]}  d5 {[%clk 0:02:59]} 5. Nxe5 {[%clk 0:02:52]}  Bd6 {[%clk 0:02:59]} 6. O-O {[%clk 0:02:45]}  Nd7 {[%clk 0:02:58]} 7. Nxd7 {[%clk 0:02:39]}  Bxd7 {[%clk 0:02:58]} 8. c4 {[%clk 0:02:37]}  c6 {[%clk 0:02:57]} 9. Nc3 {[%clk 0:02:36]}  Nxc3 {[%clk 0:02:54]} 10. bxc3 {[%clk 0:02:35]}  O-O {[%clk 0:02:54]} 11. Re1 {[%clk 0:02:31]}  dxc4 {[%clk 0:02:42]} 12. Bxc4 {[%clk 0:02:30]}  Qh4 {[%clk 0:02:40]} 13. g3 {[%clk 0:02:26]}  Qh3 {[%clk 0:02:40]} 14. Bf1 {[%clk 0:02:24]}  Qf5 {[%clk 0:02:40]} 15. Qd3 {[%clk 0:02:18]}  Qf6 {[%clk 0:02:34]} 16. Bg2 {[%clk 0:02:06]}  Rfe8 {[%clk 0:02:25]} 17. Bd2 {[%clk 0:02:02]}  h6 {[%clk 0:01:55]} 18. Qf3 {[%clk 0:01:57]}  Qg6 {[%clk 0:01:48]} 19. Rab1 {[%clk 0:01:52]}  Bg4 {[%clk 0:01:39]} 0-1


[Site "https://www.chess.com"]

[Event "Titled Tuesday Blitz March 15 Early 2022"]
[White "Xie, Bryan"]
[Black "Maltsevskaya, Aleksandra"]
[WhiteFideId "30941296"]
[BlackFideId "24174041"]
[WhiteElo "1899"]
[BlackElo "2241"]
[Result "0-1"]
[Round "01"]
[TimeControl "180+1"]
[Date "2022.03.15"]
[WhiteClock "0:00:01"]
[BlackClock "0:01:55"]

1. d4 {[%clk 0:02:24]}  Nf6 {[%clk 0:02:59]} 2. Nf3 {[%clk 0:02:22]}  g6 {[%clk 0:03:00]} 3. Bf4 {[%clk 0:02:20]}  d6 {[%clk 0:03:00]} 4. e3 {[%clk 0:02:18]}  Nbd7 {[%clk 0:03:01]} 5. Be2 {[%clk 0:02:14]}  Bg7 {[%clk 0:03:02]} 6. h3 {[%clk 0:02:15]}  O-O {[%clk 0:03:02]} 7. O-O {[%clk 0:02:15]}  b6 {[%clk 0:03:01]} 8. c4 {[%clk 0:02:09]}  Bb7 {[%clk 0:03:02]} 9. Nc3 {[%clk 0:02:10]}  Ne4 {[%clk 0:03:02]} 10. Nxe4 {[%clk 0:02:04]}  Bxe4 {[%clk 0:03:03]} 11. Nd2 {[%clk 0:02:05]}  Bb7 {[%clk 0:03:03]} 12. Bf3 {[%clk 0:02:04]}  Bxf3 {[%clk 0:03:02]} 13. Qxf3 {[%clk 0:02:05]}  e5 {[%clk 0:03:03]} 14. dxe5 {[%clk 0:01:58]}  dxe5 {[%clk 0:02:57]} 15. Bh2 {[%clk 0:01:58]}  Nc5 {[%clk 0:02:57]} 16. Rfd1 {[%clk 0:01:55]}  Qe7 {[%clk 0:02:57]} 17. Ne4 {[%clk 0:01:51]}  h5 {[%clk 0:02:51]} 18. Nxc5 {[%clk 0:01:43]}  Qxc5 {[%clk 0:02:52]} 19. Rac1 {[%clk 0:01:42]}  Rfd8 {[%clk 0:02:49]} 20. b3 {[%clk 0:01:40]}  a6 {[%clk 0:02:47]} 21. Rxd8+ {[%clk 0:01:16]}  Rxd8 {[%clk 0:02:47]} 22. Rd1 {[%clk 0:01:17]}  Rd6 {[%clk 0:02:38]} 23. Rd5 {[%clk 0:01:06]}  Qa3 {[%clk 0:02:36]} 24. Rxd6 {[%clk 0:01:00]}  cxd6 {[%clk 0:02:33]} 25. Bg3 {[%clk 0:00:21]}  Qxa2 {[%clk 0:02:32]} 26. Qa8+ {[%clk 0:00:14]}  Kh7 {[%clk 0:02:32]} 27. Qb7 {[%clk 0:00:15]}  Qxb3 {[%clk 0:02:32]} 28. Qxf7 {[%clk 0:00:11]}  b5 {[%clk 0:02:32]} 29. Qd5 {[%clk 0:00:11]}  bxc4 {[%clk 0:02:31]} 30. Qxd6 {[%clk 0:00:10]}  c3 {[%clk 0:02:31]} 31. Bxe5 {[%clk 0:00:07]}  c2 {[%clk 0:02:03]} 32. Qe7 {[%clk 0:00:05]}  c1=Q+ {[%clk 0:02:02]} 33. Kh2 {[%clk 0:00:05]}  Qg8 {[%clk 0:02:02]} 34. Bf6 {[%clk 0:00:03]}  Qcc8 {[%clk 0:01:56]} 35. f4 {[%clk 0:00:01]}  Qce8 {[%clk 0:01:55]} 0-1


[Site "https://www.chess.com"]

[Event "Titled Tuesday Blitz March 15 Early 2022"]
[White "Zong, Davis"]
[Black "Kamsky, Gata"]
[WhiteFideId "30903955"]
[BlackFideId "2000024"]
[WhiteElo "2061"]
[BlackElo "2645"]
[Result "0-1"]
[Round "01"]
[TimeControl "180+1"]
[Date "2022.03.15"]
[WhiteClock "0:00:47"]
[BlackClock "0:01:29"]

1. d4 {[%clk 0:03:00]}  f5 {[%clk 0:02:58]} 2. Nc3 {[%clk 0:02:59]}  Nf6 {[%clk 0:02:57]} 3. Bg5 {[%clk 0:02:57]}  d5 {[%clk 0:02:57]} 4. e3 {[%clk 0:02:51]}  e6 {[%clk 0:02:56]} 5. Bd3 {[%clk 0:02:48]}  c5 {[%clk 0:02:53]} 6. Nf3 {[%clk 0:02:39]}  Nc6 {[%clk 0:02:52]} 7. O-O {[%clk 0:02:35]}  a6 {[%clk 0:02:47]} 8. Ne5 {[%clk 0:02:19]}  Be7 {[%clk 0:02:27]} 9. Nxc6 {[%clk 0:01:18]}  bxc6 {[%clk 0:02:26]} 10. f3 {[%clk 0:01:02]}  O-O {[%clk 0:02:22]} 11. Qd2 {[%clk 0:00:59]}  h6 {[%clk 0:02:19]} 12. Bh4 {[%clk 0:00:57]}  a5 {[%clk 0:01:48]} 13. b3 {[%clk 0:00:56]}  Ba6 {[%clk 0:01:36]} 14. Bxa6 {[%clk 0:00:56]}  Rxa6 {[%clk 0:01:36]} 15. Na4 {[%clk 0:00:53]}  Nd7 {[%clk 0:01:30]} 16. Rae1 {[%clk 0:00:47]}  Bxh4 {[%clk 0:01:29]} 0-1


[Site "https://www.chess.com"]

[Event "Titled Tuesday Blitz March 15 Early 2022"]
[White "volunteers1998"]
[Black "Williams, Simon K"]
[BlackFideId "404454"]
[WhiteElo "2252"]
[BlackElo "2468"]
[Result "0-1"]
[Round "01"]
[TimeControl "180+1"]
[Date "2022.03.15"]
[WhiteClock "0:01:48"]
[BlackClock "0:01:57"]

1. e4 {[%clk 0:02:53]}  e6 {[%clk 0:02:56]} 2. Nf3 {[%clk 0:02:53]}  b6 {[%clk 0:02:53]} 3. d4 {[%clk 0:02:52]}  Bb7 {[%clk 0:02:51]} 4. Bd3 {[%clk 0:02:50]}  d6 {[%clk 0:02:47]} 5. O-O {[%clk 0:02:48]}  Nd7 {[%clk 0:02:45]} 6. Be3 {[%clk 0:02:45]}  g6 {[%clk 0:02:43]} 7. c4 {[%clk 0:02:43]}  Bg7 {[%clk 0:02:43]} 8. Nc3 {[%clk 0:02:41]}  Ne7 {[%clk 0:02:43]} 9. Re1 {[%clk 0:02:37]}  h6 {[%clk 0:02:44]} 10. Qe2 {[%clk 0:02:35]}  g5 {[%clk 0:02:43]} 11. Rad1 {[%clk 0:02:32]}  Ng6 {[%clk 0:02:43]} 12. d5 {[%clk 0:02:29]}  Nde5 {[%clk 0:02:37]} 13. Nxe5 {[%clk 0:02:27]}  Bxe5 {[%clk 0:02:31]} 14. g3 {[%clk 0:02:20]}  a6 {[%clk 0:02:28]} 15. Bb1 {[%clk 0:02:08]}  h5 {[%clk 0:02:11]} 16. Bd4 {[%clk 0:02:02]}  Qf6 {[%clk 0:02:08]} 17. Bxe5 {[%clk 0:01:59]}  Nxe5 {[%clk 0:02:09]} 18. Rf1 {[%clk 0:01:55]}  g4 {[%clk 0:02:02]} 19. b3 {[%clk 0:01:47]}  Nf3+ {[%clk 0:01:58]} 20. Kh1 {[%clk 0:01:48]}  Qxc3 {[%clk 0:01:57]} 0-1


[Site "https://www.chess.com"]

[Event "Titled Tuesday Blitz March 15 Early 2022"]
[White "Agrest, Evgenij"]
[Black "Winkels, Marcel"]
[WhiteFideId "1705024"]
[BlackFideId "1003887"]
[WhiteElo "2574"]
[BlackElo "1900"]
[Result "1-0"]
[Round "02"]
[TimeControl "180+1"]
[Date "2022.03.15"]
[WhiteClock "0:00:18"]
[BlackClock "0:00:05"]

1. Nf3 {[%clk 0:02:35]}  Nf6 {[%clk 0:02:56]} 2. c4 {[%clk 0:02:34]}  c5 {[%clk 0:02:47]} 3. Nc3 {[%clk 0:02:33]}  e6 {[%clk 0:02:47]} 4. g3 {[%clk 0:02:32]}  d5 {[%clk 0:02:46]} 5. cxd5 {[%clk 0:02:30]}  exd5 {[%clk 0:02:46]} 6. d4 {[%clk 0:02:30]}  cxd4 {[%clk 0:02:44]} 7. Nxd4 {[%clk 0:02:30]}  Nc6 {[%clk 0:02:42]} 8. Bg2 {[%clk 0:02:29]}  Bc5 {[%clk 0:02:39]} 9. Nb3 {[%clk 0:02:28]}  Bb6 {[%clk 0:02:29]} 10. Nxd5 {[%clk 0:02:20]}  Nxd5 {[%clk 0:02:28]} 11. Qxd5 {[%clk 0:02:20]}  Qxd5 {[%clk 0:02:27]} 12. Bxd5 {[%clk 0:02:18]}  Bh3 {[%clk 0:02:17]} 13. Be3 {[%clk 0:02:10]}  Bxe3 {[%clk 0:02:11]} 14. Bxc6+ {[%clk 0:02:09]}  bxc6 {[%clk 0:02:09]} 15. fxe3 {[%clk 0:02:09]}  O-O {[%clk 0:02:05]} 16. Kf2 {[%clk 0:02:07]}  a5 {[%clk 0:02:01]} 17. Rhc1 {[%clk 0:02:05]}  a4 {[%clk 0:01:59]} 18. Nd4 {[%clk 0:02:04]}  Rab8 {[%clk 0:01:58]} 19. Rc2 {[%clk 0:02:03]}  Bd7 {[%clk 0:01:50]} 20. Rd1 {[%clk 0:01:55]}  Rfc8 {[%clk 0:01:47]} 21. a3 {[%clk 0:01:50]}  c5 {[%clk 0:01:46]} 22. Nf3 {[%clk 0:01:47]}  Be6 {[%clk 0:01:45]} 23. Rdc1 {[%clk 0:01:44]}  Rb5 {[%clk 0:01:37]} 24. Nd4 {[%clk 0:01:40]}  Ra5 {[%clk 0:01:28]} 25. Rc3 {[%clk 0:01:30]}  h6 {[%clk 0:01:13]} 26. Nxe6 {[%clk 0:01:21]}  fxe6 {[%clk 0:01:12]} 27. R1c2 {[%clk 0:01:21]}  Kf7 {[%clk 0:01:10]} 28. e4 {[%clk 0:01:21]}  Kf6 {[%clk 0:01:09]} 29. Ke3 {[%clk 0:01:19]}  Ke5 {[%clk 0:01:09]} 30. Rc4 {[%clk 0:01:19]}  Rc7 {[%clk 0:01:07]} 31. Kd3 {[%clk 0:01:15]}  Kd6 {[%clk 0:01:05]} 32. Ke3 {[%clk 0:01:12]}  Rb7 {[%clk 0:00:56]} 33. Rd2+ {[%clk 0:01:10]}  Ke5 {[%clk 0:00:56]} 34. Rdc2 {[%clk 0:01:02]}  Rb3+ {[%clk 0:00:54]} 35. Kd2 {[%clk 0:00:54]}  Kd6 {[%clk 0:00:53]} 36. e5+ {[%clk 0:00:50]}  Kc6 {[%clk 0:00:52]} 37. Rg4 {[%clk 0:00:47]}  g5 {[%clk 0:00:49]} 38. h4 {[%clk 0:00:44]}  Rab5 {[%clk 0:00:44]} 39. Kc1 {[%clk 0:00:43]}  gxh4 {[%clk 0:00:41]} 40. gxh4 {[%clk 0:00:42]}  Kd5 {[%clk 0:00:34]} 41. Rxa4 {[%clk 0:00:41]}  Kxe5 {[%clk 0:00:33]} 42. Rac4 {[%clk 0:00:40]}  Kd5 {[%clk 0:00:32]} 43. R4c3 {[%clk 0:00:40]}  Rxc3 {[%clk 0:00:30]} 44. Rxc3 {[%clk 0:00:39]}  c4 {[%clk 0:00:28]} 45. Rg3 {[%clk 0:00:38]}  Rb8 {[%clk 0:00:25]} 46. Rg6 {[%clk 0:00:35]}  h5 {[%clk 0:00:23]} 47. Rg5+ {[%clk 0:00:34]}  e5 {[%clk 0:00:22]} 48. Rxh5 {[%clk 0:00:33]}  Rg8 {[%clk 0:00:22]} 49. Rh7 {[%clk 0:00:31]}  Rg1+ {[%clk 0:00:20]} 50. Kd2 {[%clk 0:00:30]}  Rb1 {[%clk 0:00:19]} 51. Kc3 {[%clk 0:00:26]}  Rc1+ {[%clk 0:00:18]} 52. Kd2 {[%clk 0:00:26]}  Rb1 {[%clk 0:00:18]} 53. Kc2 {[%clk 0:00:26]}  Re1 {[%clk 0:00:17]} 54. Rd7+ {[%clk 0:00:26]}  Kc5 {[%clk 0:00:15]} 55. Kd2 {[%clk 0:00:24]}  Rh1 {[%clk 0:00:13]} 56. Rh7 {[%clk 0:00:22]}  Rb1 {[%clk 0:00:12]} 57. Rc7+ {[%clk 0:00:21]}  Kd5 {[%clk 0:00:11]} 58. Rb7 {[%clk 0:00:21]}  Rh1 {[%clk 0:00:09]} 59. Kc3 {[%clk 0:00:20]}  Rh3+ {[%clk 0:00:08]} 60. Kc2 {[%clk 0:00:19]}  Rxh4 {[%clk 0:00:08]} 61. Rb5+ {[%clk 0:00:19]}  Kd4 {[%clk 0:00:07]} 62. a4 {[%clk 0:00:20]}  Rh8 {[%clk 0:00:06]} 63. a5 {[%clk 0:00:19]}  Ra8 {[%clk 0:00:05]} 64. Kd2 {[%clk 0:00:18]}  e4 {[%clk 0:00:05]} 65. e3# {[%clk 0:00:18]} 1-0


[Site "https://www.chess.com"]

[Event "Titled Tuesday Blitz March 15 Early 2022"]
[White "Arabidze, Meri"]
[Black "Esipenko, Andrey"]
[WhiteFideId "13604040"]
[BlackFideId "24175439"]
[WhiteElo "2335"]
[BlackElo "2617"]
[Result "0-1"]
[Round "02"]
[TimeControl "180+1"]
[Date "2022.03.15"]
[WhiteClock "0:00:03"]
[BlackClock "0:00:46"]

1. Nf3 {[%clk 0:03:00]}  d5 {[%clk 0:02:59]} 2. d4 {[%clk 0:03:00]}  Nf6 {[%clk 0:02:59]} 3. c4 {[%clk 0:03:01]}  c6 {[%clk 0:02:59]} 4. Nbd2 {[%clk 0:02:58]}  Bf5 {[%clk 0:02:56]} 5. e3 {[%clk 0:02:55]}  h6 {[%clk 0:02:55]} 6. Be2 {[%clk 0:02:53]}  e6 {[%clk 0:02:55]} 7. O-O {[%clk 0:02:53]}  a5 {[%clk 0:02:52]} 8. Ne5 {[%clk 0:02:53]}  a4 {[%clk 0:02:51]} 9. c5 {[%clk 0:02:48]}  b6 {[%clk 0:02:49]} 10. b4 {[%clk 0:02:29]}  axb3 {[%clk 0:02:48]} 11. Nxb3 {[%clk 0:02:29]}  bxc5 {[%clk 0:02:43]} 12. Nxc5 {[%clk 0:02:30]}  Bxc5 {[%clk 0:02:42]} 13. dxc5 {[%clk 0:02:31]}  O-O {[%clk 0:02:37]} 14. Bb2 {[%clk 0:02:24]}  Nfd7 {[%clk 0:02:37]} 15. a4 {[%clk 0:02:00]}  Qc7 {[%clk 0:02:30]} 16. Qd4 {[%clk 0:01:48]}  f6 {[%clk 0:02:29]} 17. Nxd7 {[%clk 0:01:45]}  Nxd7 {[%clk 0:02:30]} 18. Bg4 {[%clk 0:01:14]}  e5 {[%clk 0:02:23]} 19. Qd1 {[%clk 0:01:13]}  Bxg4 {[%clk 0:02:23]} 20. Qxg4 {[%clk 0:01:14]}  Nxc5 {[%clk 0:02:23]} 21. Ba3 {[%clk 0:01:10]}  Rxa4 {[%clk 0:02:23]} 22. Qxa4 {[%clk 0:00:52]}  Nxa4 {[%clk 0:02:22]} 23. Bxf8 {[%clk 0:00:53]}  Kxf8 {[%clk 0:01:44]} 24. Rxa4 {[%clk 0:00:53]}  Kf7 {[%clk 0:01:45]} 25. Rc1 {[%clk 0:00:51]}  c5 {[%clk 0:01:43]} 26. e4 {[%clk 0:00:49]}  dxe4 {[%clk 0:01:33]} 27. Rxe4 {[%clk 0:00:47]}  Ke6 {[%clk 0:01:33]} 28. Rec4 {[%clk 0:00:44]}  Kd5 {[%clk 0:01:33]} 29. h4 {[%clk 0:00:40]}  f5 {[%clk 0:01:21]} 30. h5 {[%clk 0:00:38]}  e4 {[%clk 0:01:20]} 31. R4c3 {[%clk 0:00:27]}  Qa5 {[%clk 0:01:20]} 32. g3 {[%clk 0:00:23]}  Qb4 {[%clk 0:01:18]} 33. Kg2 {[%clk 0:00:20]}  c4 {[%clk 0:01:15]} 34. R3c2 {[%clk 0:00:17]}  Kc5 {[%clk 0:01:06]} 35. Kh3 {[%clk 0:00:17]}  Kd4 {[%clk 0:01:04]} 36. Kg2 {[%clk 0:00:15]}  Kd3 {[%clk 0:00:58]} 37. Kf1 {[%clk 0:00:06]}  c3 {[%clk 0:00:53]} 38. Ke1 {[%clk 0:00:03]}  Qb3 {[%clk 0:00:50]} 39. Kd1 {[%clk 0:00:03]}  Qa4 {[%clk 0:00:46]} 0-1


[Site "https://www.chess.com"]

[Event "Titled Tuesday Blitz March 15 Early 2022"]
[White "Bodnaruk, Anastasia"]
[Black "Urazayev, Arystanbek"]
[WhiteFideId "4181751"]
[BlackFideId "13709810"]
[WhiteElo "2393"]
[BlackElo "2393"]
[Result "0-1"]
[Round "02"]
[TimeControl "180+1"]
[Date "2022.03.15"]
[WhiteClock "0:00:06"]
[BlackClock "0:00:14"]

1. e4 {[%clk 0:02:57]}  c6 {[%clk 0:03:00]} 2. d4 {[%clk 0:02:55]}  d5 {[%clk 0:03:00]} 3. e5 {[%clk 0:02:56]}  c5 {[%clk 0:03:00]} 4. c3 {[%clk 0:02:50]}  Nc6 {[%clk 0:03:00]} 5. Be2 {[%clk 0:02:49]}  e6 {[%clk 0:02:57]} 6. Nf3 {[%clk 0:02:49]}  Bd7 {[%clk 0:02:40]} 7. O-O {[%clk 0:02:48]}  Nge7 {[%clk 0:02:41]} 8. dxc5 {[%clk 0:02:44]}  Ng6 {[%clk 0:02:41]} 9. b4 {[%clk 0:02:45]}  Ncxe5 {[%clk 0:02:41]} 10. Nxe5 {[%clk 0:02:43]}  Nxe5 {[%clk 0:02:42]} 11. f4 {[%clk 0:02:43]}  Ng6 {[%clk 0:02:41]} 12. f5 {[%clk 0:02:38]}  exf5 {[%clk 0:02:24]} 13. Qxd5 {[%clk 0:02:38]}  Qc7 {[%clk 0:02:24]} 14. Bf3 {[%clk 0:02:32]}  O-O-O {[%clk 0:02:14]} 15. Qb3 {[%clk 0:01:57]}  Ne5 {[%clk 0:01:58]} 16. Bf4 {[%clk 0:01:54]}  f6 {[%clk 0:01:59]} 17. Nd2 {[%clk 0:01:49]}  g5 {[%clk 0:01:59]} 18. Bxe5 {[%clk 0:01:47]}  fxe5 {[%clk 0:01:59]} 19. Bd5 {[%clk 0:01:46]}  Kb8 {[%clk 0:01:44]} 20. Nf3 {[%clk 0:01:37]}  Be7 {[%clk 0:01:35]} 21. Rfe1 {[%clk 0:01:25]}  Bf6 {[%clk 0:01:35]} 22. Nd2 {[%clk 0:01:04]}  Bc8 {[%clk 0:01:09]} 23. c4 {[%clk 0:00:57]}  e4 {[%clk 0:01:09]} 24. Rad1 {[%clk 0:00:52]}  h5 {[%clk 0:01:04]} 25. Nf1 {[%clk 0:00:48]}  h4 {[%clk 0:01:02]} 26. Qe3 {[%clk 0:00:43]}  h3 {[%clk 0:00:58]} 27. g3 {[%clk 0:00:40]}  Be7 {[%clk 0:00:53]} 28. g4 {[%clk 0:00:33]}  Rh4 {[%clk 0:00:35]} 29. gxf5 {[%clk 0:00:31]}  Bxf5 {[%clk 0:00:33]} 30. Ng3 {[%clk 0:00:31]}  Bg4 {[%clk 0:00:30]} 31. Rd4 {[%clk 0:00:28]}  Bf3 {[%clk 0:00:26]} 32. Bxe4 {[%clk 0:00:25]}  Bxe4 {[%clk 0:00:23]} 33. Rxe4 {[%clk 0:00:21]}  Rxe4 {[%clk 0:00:18]} 34. Qxe4 {[%clk 0:00:20]}  Bf6 {[%clk 0:00:18]} 35. Kh1 {[%clk 0:00:15]}  a5 {[%clk 0:00:19]} 36. a3 {[%clk 0:00:15]}  Rd4 {[%clk 0:00:18]} 37. Qe8+ {[%clk 0:00:14]}  Ka7 {[%clk 0:00:19]} 38. Ne4 {[%clk 0:00:14]}  Be7 {[%clk 0:00:18]} 39. Qb5 {[%clk 0:00:10]}  Qf4 {[%clk 0:00:15]} 40. Qb6+ {[%clk 0:00:06]}  Kb8 {[%clk 0:00:14]} 0-1


[Site "https://www.chess.com"]